[Event "*** SCC Grand Prix: Titled Tuesday Blitz"]
[Site "Chess.com"]
[Date "2020.10.13"]
[Round "7"]
[White "Eliwood44"]
[Black "Maksimus1998"]
[Result "1/2-1/2"]
[WhiteElo "2429"]
[BlackElo "2613"]
[TimeControl "180+1"]
[EndTime "11:16:07 PDT"]
[Termination "Game drawn by repetition"]

1. d4 {[%clk 0:03:00.9]} 1... d5 {[%clk 0:02:59.6]} 2. Nf3 {[%clk 0:03:00.8]}
2... Nf6 {[%clk 0:02:59.4]} 3. c4 {[%clk 0:03:00.9]} 3... c6 {[%clk 0:02:59.6]}
4. e3 {[%clk 0:02:59.4]} 4... a6 {[%clk 0:02:54.5]} 5. b3 {[%clk 0:02:59.1]}
5... Bg4 {[%clk 0:02:51.2]} 6. Nbd2 {[%clk 0:02:58.1]} 6... e6 {[%clk
0:02:51.1]} 7. h3 {[%clk 0:02:58.3]} 7... Bh5 {[%clk 0:02:50.9]} 8. Be2 {[%clk
0:02:58.6]} 8... Be7 {[%clk 0:02:50.2]} 9. O-O {[%clk 0:02:58.9]} 9... O-O
{[%clk 0:02:50.3]} 10. Bb2 {[%clk 0:02:59.5]} 10... Nbd7 {[%clk 0:02:47.1]} 11.
Rc1 {[%clk 0:02:59]} 11... b5 {[%clk 0:02:46.8]} 12. c5 {[%clk 0:02:58.9]} 12...
Ne4 {[%clk 0:02:41.2]} 13. Nxe4 {[%clk 0:02:58.3]} 13... dxe4 {[%clk 0:02:41.3]}
14. Nd2 {[%clk 0:02:50.4]} 14... Bxe2 {[%clk 0:02:40.7]} 15. Qxe2 {[%clk
0:02:51.3]} 15... Nf6 {[%clk 0:02:36.4]} 16. f3 {[%clk 0:02:51.3]} 16... Qd5
{[%clk 0:02:30.2]} 17. fxe4 {[%clk 0:02:47.6]} 17... Nxe4 {[%clk 0:02:30]} 18.
Nxe4 {[%clk 0:02:48]} 18... Qxe4 {[%clk 0:02:29.8]} 19. Rf4 {[%clk 0:02:48.5]}
19... Qd5 {[%clk 0:02:25.7]} 20. Rcf1 {[%clk 0:02:46.3]} 20... f5 {[%clk
0:02:21.1]} 21. e4 {[%clk 0:02:33.8]} 21... fxe4 {[%clk 0:02:19.9]} 22. Qxe4
{[%clk 0:02:31.7]} 22... Qxe4 {[%clk 0:02:10.4]} 23. Rxe4 {[%clk 0:02:32.6]}
23... Rxf1+ {[%clk 0:02:09.8]} 24. Kxf1 {[%clk 0:02:33.5]} 24... Kf7 {[%clk
0:02:09.8]} 25. Ke2 {[%clk 0:02:33.2]} 25... Bf6 {[%clk 0:02:08.5]} 26. g4
{[%clk 0:02:29.1]} 26... Rd8 {[%clk 0:02:07.4]} 27. Ke3 {[%clk 0:02:24.8]} 27...
Rd5 {[%clk 0:02:06.7]} 28. a3 {[%clk 0:02:22.9]} 28... h5 {[%clk 0:02:03.4]} 29.
Rf4 {[%clk 0:02:20.5]} 29... Ke7 {[%clk 0:02:01.2]} 30. Ke4 {[%clk 0:02:17.7]}
30... Bg5 {[%clk 0:01:42]} 31. Rf2 {[%clk 0:02:12.6]} 31... h4 {[%clk
0:01:31.9]} 32. Bc3 {[%clk 0:02:08]} 32... g6 {[%clk 0:01:29.2]} 33. b4 {[%clk
0:01:56.8]} 33... Rd8 {[%clk 0:01:12.3]} 34. Bd2 {[%clk 0:01:50.9]} 34... Bxd2
{[%clk 0:01:07.4]} 35. Rxd2 {[%clk 0:01:51.8]} 35... Rf8 {[%clk 0:01:07.5]} 36.
Rd3 {[%clk 0:01:52]} 36... Rf1 {[%clk 0:01:02.8]} 37. Rf3 {[%clk 0:01:51.3]}
37... Rg1 {[%clk 0:00:37.3]} 38. Kf4 {[%clk 0:01:48.6]} 38... Kf6 {[%clk
0:00:31.1]} 39. Re3 {[%clk 0:01:46.4]} 39... g5+ {[%clk 0:00:29.7]} 40. Ke4
{[%clk 0:01:45.2]} 40... Ke7 {[%clk 0:00:22.1]} 41. Rf3 {[%clk 0:01:41.9]} 41...
Re1+ {[%clk 0:00:21.1]} 42. Re3 {[%clk 0:01:39.4]} 42... Rf1 {[%clk 0:00:21.3]}
43. Rf3 {[%clk 0:01:39.6]} 43... Rg1 {[%clk 0:00:18.2]} 44. Re3 {[%clk
0:01:36.9]} 44... Rg2 {[%clk 0:00:17.9]} 45. Rf3 {[%clk 0:01:36.5]} 45... Re2+
{[%clk 0:00:17.3]} 46. Re3 {[%clk 0:01:36.5]} 46... Rf2 {[%clk 0:00:11.2]} 47.
Rf3 {[%clk 0:01:36.4]} 47... Rg2 {[%clk 0:00:10]} 48. Re3 {[%clk 0:01:36.3]}
48... Rg1 {[%clk 0:00:09.8]} 49. Rf3 {[%clk 0:01:36.3]} 49... Ra1 {[%clk
0:00:09.3]} 50. Re3 {[%clk 0:01:36.1]} 50... Rf1 {[%clk 0:00:07]} 51. Rf3 {[%clk
0:01:36.1]} 51... Re1+ {[%clk 0:00:07.2]} 52. Re3 {[%clk 0:01:35.7]} 52... Rf1
{[%clk 0:00:07.1]} 1/2-1/2

[Event "*** SCC Grand Prix: Titled Tuesday Blitz"]
[Site "Chess.com"]
[Date "2020.10.13"]
[Round "7"]
[White "Yashasd1995"]
[Black "Cocaino74"]
[Result "1-0"]
[WhiteElo "2602"]
[BlackElo "2390"]
[TimeControl "180+1"]
[EndTime "11:16:12 PDT"]
[Termination "Yashasd1995 won on time"]

1. b3 {[%clk 0:03:00.9]} 1... c5 {[%clk 0:02:56.6]} 2. Bb2 {[%clk 0:03:01.8]}
2... Nc6 {[%clk 0:02:56.6]} 3. e3 {[%clk 0:03:01.2]} 3... d6 {[%clk 0:02:54.7]}
4. Bb5 {[%clk 0:03:00.8]} 4... Nf6 {[%clk 0:02:51.4]} 5. Nf3 {[%clk 0:02:58.6]}
5... e5 {[%clk 0:02:48.9]} 6. O-O {[%clk 0:02:54.6]} 6... Be7 {[%clk 0:02:48.6]}
7. d4 {[%clk 0:02:54.5]} 7... e4 {[%clk 0:02:42.5]} 8. Nfd2 {[%clk 0:02:44.8]}
8... Bg4 {[%clk 0:02:21.4]} 9. Be2 {[%clk 0:02:38.1]} 9... Bf5 {[%clk
0:02:00.8]} 10. c4 {[%clk 0:02:29.1]} 10... d5 {[%clk 0:01:52.5]} 11. dxc5
{[%clk 0:02:23.4]} 11... d4 {[%clk 0:01:39.4]} 12. exd4 {[%clk 0:02:21.4]} 12...
Nxd4 {[%clk 0:01:40.3]} 13. Nc3 {[%clk 0:02:19.1]} 13... Bxc5 {[%clk 0:01:16.7]}
14. a3 {[%clk 0:01:28.1]} 14... a5 {[%clk 0:00:55.9]} 15. Nb5 {[%clk 0:01:25]}
15... Nxb5 {[%clk 0:00:37.4]} 16. cxb5 {[%clk 0:01:25.9]} 16... e3 {[%clk
0:00:38]} 17. fxe3 {[%clk 0:01:26]} 17... Bxe3+ {[%clk 0:00:38]} 18. Kh1 {[%clk
0:01:26.4]} 18... Be6 {[%clk 0:00:29.8]} 19. Nc4 {[%clk 0:01:06.1]} 19... Bc5
{[%clk 0:00:16.7]} 20. Bf3 {[%clk 0:01:05.9]} 20... Rb8 {[%clk 0:00:09.4]} 21.
Be5 {[%clk 0:01:04.4]} 21... O-O {[%clk 0:00:07.1]} 22. Bxb8 {[%clk 0:01:02.8]}
22... Qxb8 {[%clk 0:00:07.3]} 23. Nxa5 {[%clk 0:01:02.6]} 23... Rd8 {[%clk
0:00:05]} 24. Qc2 {[%clk 0:00:58.4]} 24... Bd4 {[%clk 0:00:04.8]} 25. Rad1
{[%clk 0:00:54.2]} 25... Bc8 {[%clk 0:00:03.7]} 26. b4 {[%clk 0:00:39.1]} 26...
Qa7 {[%clk 0:00:01.3]} 27. Nb3 {[%clk 0:00:38.2]} 1-0

[Event "*** SCC Grand Prix: Titled Tuesday Blitz"]
[Site "Chess.com"]
[Date "2020.10.13"]
[Round "7"]
[White "Chessalary"]
[Black "anasta10"]
[Result "1-0"]
[WhiteElo "2298"]
[BlackElo "2400"]
[TimeControl "180+1"]
[EndTime "11:16:12 PDT"]
[Termination "Chessalary won by resignation"]

1. d4 {[%clk 0:03:00.9]} 1... Nf6 {[%clk 0:02:57.5]} 2. c4 {[%clk 0:03:01]} 2...
g6 {[%clk 0:02:54.1]} 3. Nc3 {[%clk 0:03:01.1]} 3... d5 {[%clk 0:02:54.4]} 4.
cxd5 {[%clk 0:03:01.6]} 4... Nxd5 {[%clk 0:02:55.3]} 5. e4 {[%clk 0:03:02]} 5...
Nxc3 {[%clk 0:02:54.1]} 6. bxc3 {[%clk 0:03:02.2]} 6... Bg7 {[%clk 0:02:54.3]}
7. Nf3 {[%clk 0:03:02.2]} 7... O-O {[%clk 0:02:54.4]} 8. Rb1 {[%clk 0:03:02.4]}
8... c5 {[%clk 0:02:54.7]} 9. Be2 {[%clk 0:03:01.8]} 9... Nc6 {[%clk 0:02:49.7]}
10. d5 {[%clk 0:03:01.5]} 10... Na5 {[%clk 0:02:47.6]} 11. c4 {[%clk 0:03:00.5]}
11... b6 {[%clk 0:02:47.9]} 12. O-O {[%clk 0:02:59.3]} 12... Ba6 {[%clk
0:02:48.3]} 13. Qc2 {[%clk 0:02:55.2]} 13... e6 {[%clk 0:02:43.6]} 14. Rd1
{[%clk 0:02:46.3]} 14... exd5 {[%clk 0:02:43.6]} 15. cxd5 {[%clk 0:02:47.2]}
15... Bxe2 {[%clk 0:02:42.8]} 16. Qxe2 {[%clk 0:02:48.1]} 16... Re8 {[%clk
0:02:43.2]} 17. Bd2 {[%clk 0:02:44.6]} 17... Nb7 {[%clk 0:02:42.6]} 18. Bf4
{[%clk 0:02:40.8]} 18... Nd6 {[%clk 0:02:42.2]} 19. e5 {[%clk 0:02:38.2]} 19...
Nf5 {[%clk 0:02:42.2]} 20. g4 {[%clk 0:02:13.4]} 20... Nh4 {[%clk 0:02:32.4]}
21. Nxh4 {[%clk 0:02:08.9]} 21... Qxh4 {[%clk 0:02:30.8]} 22. f3 {[%clk
0:02:07.9]} 22... h5 {[%clk 0:02:29.4]} 23. Bg3 {[%clk 0:02:02.9]} 23... Qg5
{[%clk 0:02:27.5]} 24. h4 {[%clk 0:01:59.3]} 24... Qe7 {[%clk 0:02:27]} 25. f4
{[%clk 0:01:55.8]} 25... hxg4 {[%clk 0:02:22.2]} 26. Qxg4 {[%clk 0:01:56.4]}
26... Rad8 {[%clk 0:02:22.7]} 27. d6 {[%clk 0:01:53.8]} 27... Qe6 {[%clk
0:02:22.4]} 28. Qg5 {[%clk 0:01:42.8]} 28... c4 {[%clk 0:02:14.2]} 29. h5 {[%clk
0:01:39.2]} 29... gxh5 {[%clk 0:02:13.1]} 30. f5 {[%clk 0:01:28.6]} 30... Qh6
{[%clk 0:02:05.7]} 31. Qxh6 {[%clk 0:01:26.7]} 31... Bxh6 {[%clk 0:02:06.6]} 32.
Kh2 {[%clk 0:01:23.4]} 32... c3 {[%clk 0:02:04.9]} 33. Rbc1 {[%clk 0:01:11.4]}
33... Bd2 {[%clk 0:01:52.6]} 34. Rc2 {[%clk 0:01:09.1]} 34... Rd7 {[%clk
0:01:46.5]} 35. Rg1 {[%clk 0:01:06.1]} 35... Kh7 {[%clk 0:01:44.1]} 36. Rxd2
{[%clk 0:00:52]} 36... cxd2 {[%clk 0:01:43.8]} 37. Rd1 {[%clk 0:00:52.6]} 37...
h4 {[%clk 0:01:38.5]} 38. Bf4 {[%clk 0:00:51.9]} 38... b5 {[%clk 0:01:35.4]} 39.
Rxd2 {[%clk 0:00:51.8]} 39... a5 {[%clk 0:01:36]} 40. Rd3 {[%clk 0:00:44.9]}
40... b4 {[%clk 0:01:33.9]} 41. Rh3 {[%clk 0:00:43.9]} 41... Kg7 {[%clk
0:01:23.9]} 42. Rxh4 {[%clk 0:00:34.8]} 42... Rh8 {[%clk 0:01:18.5]} 43. Rxh8
{[%clk 0:00:34.8]} 43... Kxh8 {[%clk 0:01:19.4]} 44. e6 {[%clk 0:00:35.1]} 44...
fxe6 {[%clk 0:01:19.6]} 45. fxe6 {[%clk 0:00:35.9]} 45... Rh7+ {[%clk
0:01:19.3]} 46. Kg3 {[%clk 0:00:35.6]} 46... Kg7 {[%clk 0:01:19.3]} 47. d7
{[%clk 0:00:33.3]} 47... Rh8 {[%clk 0:01:13.6]} 48. Be5+ {[%clk 0:00:33.1]} 1-0

[Event "*** SCC Grand Prix: Titled Tuesday Blitz"]
[Site "Chess.com"]
[Date "2020.10.13"]
[Round "7"]
[White "Beca95"]
[Black "youngKID"]
[Result "1-0"]
[WhiteElo "2920"]
[BlackElo "2814"]
[TimeControl "180+1"]
[EndTime "11:16:15 PDT"]
[Termination "Beca95 won by resignation"]

1. d4 {[%clk 0:03:00.9]} 1... Nf6 {[%clk 0:02:59.4]} 2. Nf3 {[%clk 0:03:01.3]}
2... e6 {[%clk 0:02:54.4]} 3. Bg5 {[%clk 0:02:59.9]} 3... d5 {[%clk 0:02:53.9]}
4. c3 {[%clk 0:03:00]} 4... Nbd7 {[%clk 0:02:53.2]} 5. Nbd2 {[%clk 0:03:00.1]}
5... Be7 {[%clk 0:02:52.8]} 6. e3 {[%clk 0:03:00.2]} 6... b6 {[%clk 0:02:51.7]}
7. Bd3 {[%clk 0:02:59.7]} 7... Bb7 {[%clk 0:02:51.5]} 8. h4 {[%clk 0:02:59.9]}
8... h6 {[%clk 0:02:50.8]} 9. Bf4 {[%clk 0:03:00.1]} 9... c5 {[%clk 0:02:50.1]}
10. Qb1 {[%clk 0:02:59.6]} 10... a6 {[%clk 0:02:48.2]} 11. a3 {[%clk 0:02:59.5]}
11... c4 {[%clk 0:02:37.8]} 12. Bc2 {[%clk 0:02:59]} 12... b5 {[%clk 0:02:38.3]}
13. Ne5 {[%clk 0:02:50.9]} 13... Nxe5 {[%clk 0:02:34.8]} 14. dxe5 {[%clk
0:02:51.8]} 14... Nd7 {[%clk 0:02:32.7]} 15. Nf3 {[%clk 0:02:52]} 15... O-O
{[%clk 0:02:10]} 16. Rh3 {[%clk 0:02:40]} 16... f5 {[%clk 0:02:06.4]} 17. exf6
{[%clk 0:02:32.7]} 17... Bxf6 {[%clk 0:02:01.5]} 18. Ng5 {[%clk 0:02:32.2]}
18... e5 {[%clk 0:01:37.4]} 19. Bf5 {[%clk 0:01:39.4]} 19... e4 {[%clk
0:01:32.4]} 20. Ne6 {[%clk 0:01:32.6]} 20... Qe7 {[%clk 0:01:30]} 21. Nxf8
{[%clk 0:01:32.4]} 21... Rxf8 {[%clk 0:01:27.9]} 22. Bxd7 {[%clk 0:01:32]} 22...
Qxd7 {[%clk 0:01:28.8]} 23. Qd1 {[%clk 0:01:31.9]} 23... Qf5 {[%clk 0:01:15.5]}
24. g4 {[%clk 0:01:25]} 24... Qe6 {[%clk 0:01:14]} 25. Rh1 {[%clk 0:01:23.2]}
25... Be5 {[%clk 0:01:07.6]} 26. Bxe5 {[%clk 0:01:21.5]} 26... Qxe5 {[%clk
0:01:08.5]} 27. g5 {[%clk 0:01:20.7]} 27... hxg5 {[%clk 0:00:49.9]} 28. hxg5
{[%clk 0:01:21.6]} 28... Qxg5 {[%clk 0:00:50.6]} 29. Qh5 {[%clk 0:01:20.4]}
29... Qxh5 {[%clk 0:00:48.2]} 30. Rxh5 {[%clk 0:01:21.3]} 30... g6 {[%clk
0:00:47.6]} 31. Rh2 {[%clk 0:01:20]} 31... Bc8 {[%clk 0:00:45.1]} 32. Rg2 {[%clk
0:01:17.3]} 32... Kg7 {[%clk 0:00:40.4]} 33. O-O-O {[%clk 0:01:16.8]} 33... Be6
{[%clk 0:00:40.8]} 34. Rh1 {[%clk 0:01:14.5]} 34... a5 {[%clk 0:00:39.6]} 35.
Kd2 {[%clk 0:01:12.9]} 35... a4 {[%clk 0:00:39]} 36. Rgh2 {[%clk 0:01:11.4]}
36... Bg8 {[%clk 0:00:38.7]} 37. Ke2 {[%clk 0:01:10.3]} 37... Rf5 {[%clk
0:00:38.5]} 38. Rh4 {[%clk 0:01:10.3]} 38... g5 {[%clk 0:00:32.3]} 39. Rh6
{[%clk 0:01:09.1]} 39... Bf7 {[%clk 0:00:30.8]} 40. Rb6 {[%clk 0:01:07.5]} 40...
Be8 {[%clk 0:00:31.2]} 41. Rhh6 {[%clk 0:01:05.4]} 41... Rf8 {[%clk 0:00:23.7]}
42. Rhe6 {[%clk 0:01:04.2]} 42... Bh5+ {[%clk 0:00:23.3]} 43. Ke1 {[%clk
0:01:03.8]} 1-0

[Event "*** SCC Grand Prix: Titled Tuesday Blitz"]
[Site "Chess.com"]
[Date "2020.10.13"]
[Round "7"]
[White "Chessdude1987"]
[Black "Tayson_7"]
[Result "0-1"]
[WhiteElo "2290"]
[BlackElo "2611"]
[TimeControl "180+1"]
[EndTime "11:16:15 PDT"]
[Termination "Tayson_7 won by checkmate"]

1. e4 {[%clk 0:03:00.9]} 1... c5 {[%clk 0:02:58.9]} 2. b3 {[%clk 0:03:00.3]}
2... Nf6 {[%clk 0:02:58.4]} 3. Nc3 {[%clk 0:03:00]} 3... Nc6 {[%clk 0:02:56.8]}
4. Bb2 {[%clk 0:02:59.9]} 4... g6 {[%clk 0:02:56.7]} 5. f4 {[%clk 0:03:00]} 5...
Bg7 {[%clk 0:02:56.8]} 6. Qf3 {[%clk 0:03:00.2]} 6... O-O {[%clk 0:02:56.6]} 7.
O-O-O {[%clk 0:02:57.5]} 7... a6 {[%clk 0:02:50.9]} 8. e5 {[%clk 0:02:51.2]}
8... Ne8 {[%clk 0:02:48.4]} 9. h4 {[%clk 0:02:47.4]} 9... d6 {[%clk 0:02:48.1]}
10. exd6 {[%clk 0:02:23.9]} 10... Nxd6 {[%clk 0:02:47.6]} 11. h5 {[%clk
0:02:21.8]} 11... Nd4 {[%clk 0:02:40.9]} 12. Qg3 {[%clk 0:02:13.3]} 12... Bf5
{[%clk 0:02:38.3]} 13. Bd3 {[%clk 0:02:02]} 13... b5 {[%clk 0:02:29.7]} 14. hxg6
{[%clk 0:02:00.5]} 14... fxg6 {[%clk 0:02:27.5]} 15. Bxf5 {[%clk 0:01:56]} 15...
Rxf5 {[%clk 0:01:52.5]} 16. Nce2 {[%clk 0:01:36.6]} 16... Ne4 {[%clk 0:01:49.1]}
17. Qe3 {[%clk 0:01:32.9]} 17... Qd5 {[%clk 0:01:36.1]} 18. g4 {[%clk
0:01:22.2]} 18... Rf7 {[%clk 0:01:30.1]} 19. Nxd4 {[%clk 0:01:07.3]} 19... cxd4
{[%clk 0:01:28.1]} 20. Qh3 {[%clk 0:01:04.6]} 20... h6 {[%clk 0:01:26.7]} 21.
Qf3 {[%clk 0:00:59.7]} 21... Rc8 {[%clk 0:01:13.1]} 22. Kb1 {[%clk 0:00:54.4]}
22... Qc6 {[%clk 0:00:46.1]} 23. c3 {[%clk 0:00:44.6]} 23... dxc3 {[%clk
0:00:44.9]} 24. dxc3 {[%clk 0:00:43.9]} 24... Bxc3 {[%clk 0:00:44.5]} 25. Qg2
{[%clk 0:00:27.9]} 25... Bxb2 {[%clk 0:00:42]} 26. Qxb2 {[%clk 0:00:26.9]} 26...
Nc3+ {[%clk 0:00:42.3]} 27. Ka1 {[%clk 0:00:08.2]} 27... Nxd1 {[%clk 0:00:39.4]}
28. Rxh6 {[%clk 0:00:06.7]} 28... Qc1+ {[%clk 0:00:37.8]} 29. Qb1 {[%clk
0:00:05.7]} 29... Qc3+ {[%clk 0:00:37.1]} 30. Qb2 {[%clk 0:00:06]} 30... Qxb2#
{[%clk 0:00:38]} 0-1

[Event "*** SCC Grand Prix: Titled Tuesday Blitz"]
[Site "Chess.com"]
[Date "2020.10.13"]
[Round "7"]
[White "maximnovik"]
[Black "tteshan"]
[Result "0-1"]
[WhiteElo "2523"]
[BlackElo "2388"]
[TimeControl "180+1"]
[EndTime "11:16:15 PDT"]
[Termination "tteshan won by resignation"]

1. d4 {[%clk 0:03:00.9]} 1... d5 {[%clk 0:02:59.9]} 2. c4 {[%clk 0:03:00.3]}
2... dxc4 {[%clk 0:03:00.8]} 3. e4 {[%clk 0:02:59.8]} 3... e5 {[%clk 0:03:00.1]}
4. Nf3 {[%clk 0:02:58.8]} 4... Bb4+ {[%clk 0:02:59]} 5. Bd2 {[%clk 0:02:55.5]}
5... Bxd2+ {[%clk 0:02:53.1]} 6. Nbxd2 {[%clk 0:02:55.2]} 6... exd4 {[%clk
0:02:51.6]} 7. Bxc4 {[%clk 0:02:55.6]} 7... Nf6 {[%clk 0:02:44.6]} 8. O-O {[%clk
0:02:51.7]} 8... O-O {[%clk 0:02:44.1]} 9. h3 {[%clk 0:02:28.8]} 9... c5 {[%clk
0:02:41.8]} 10. Re1 {[%clk 0:02:25.4]} 10... Nc6 {[%clk 0:02:40.2]} 11. e5
{[%clk 0:02:25.3]} 11... Nd5 {[%clk 0:02:39]} 12. Ne4 {[%clk 0:02:25.7]} 12...
Nb6 {[%clk 0:02:22.9]} 13. Rc1 {[%clk 0:02:17.1]} 13... Nxc4 {[%clk 0:02:20.1]}
14. Rxc4 {[%clk 0:02:16.4]} 14... b6 {[%clk 0:02:20.2]} 15. Qd2 {[%clk
0:02:07.1]} 15... Qd5 {[%clk 0:02:10.6]} 16. b3 {[%clk 0:01:59]} 16... Bf5
{[%clk 0:01:57.8]} 17. Ng3 {[%clk 0:01:51.4]} 17... Bg6 {[%clk 0:01:54.4]} 18.
h4 {[%clk 0:01:49.3]} 18... h6 {[%clk 0:01:52.4]} 19. h5 {[%clk 0:01:48.4]}
19... Bh7 {[%clk 0:01:52.7]} 20. Qf4 {[%clk 0:01:38.9]} 20... Rfe8 {[%clk
0:01:48.3]} 21. Rcc1 {[%clk 0:01:26]} 21... Re7 {[%clk 0:01:46.3]} 22. Re2
{[%clk 0:01:05.1]} 22... Rae8 {[%clk 0:01:47]} 23. Rce1 {[%clk 0:01:04.5]} 23...
b5 {[%clk 0:01:36.4]} 24. Nf5 {[%clk 0:00:34.3]} 24... Bxf5 {[%clk 0:01:32.5]}
25. Qxf5 {[%clk 0:00:34.6]} 25... c4 {[%clk 0:01:18.8]} 26. bxc4 {[%clk
0:00:33.1]} 26... bxc4 {[%clk 0:01:19.7]} 27. Re4 {[%clk 0:00:33.4]} 27... c3
{[%clk 0:01:11.4]} 28. Rg4 {[%clk 0:00:33.1]} 28... Nxe5 {[%clk 0:00:47.9]} 29.
Rxe5 {[%clk 0:00:28.8]} 29... Rxe5 {[%clk 0:00:42.4]} 30. Qf6 {[%clk 0:00:28.9]}
30... Re1+ {[%clk 0:00:35.2]} 31. Kh2 {[%clk 0:00:27.6]} 31... Qxh5+ {[%clk
0:00:31.5]} 32. Kg3 {[%clk 0:00:27.1]} 32... Qxg4+ {[%clk 0:00:29.6]} 0-1

[Event "*** SCC Grand Prix: Titled Tuesday Blitz"]
[Site "Chess.com"]
[Date "2020.10.13"]
[Round "7"]
[White "canary2016"]
[Black "GM_Huschenbeth"]
[Result "0-1"]
[WhiteElo "1958"]
[BlackElo "2304"]
[TimeControl "180+1"]
[EndTime "11:16:16 PDT"]
[Termination "GM_Huschenbeth won by checkmate"]

1. Nf3 {[%clk 0:03:00.9]} 1... d5 {[%clk 0:02:59.4]} 2. c4 {[%clk 0:02:59.6]}
2... d4 {[%clk 0:02:59.2]} 3. b4 {[%clk 0:02:58]} 3... f6 {[%clk 0:02:58.5]} 4.
d3 {[%clk 0:02:55.6]} 4... e5 {[%clk 0:02:58]} 5. g3 {[%clk 0:02:50.3]} 5...
Bxb4+ {[%clk 0:02:57.1]} 6. Bd2 {[%clk 0:02:45.7]} 6... Bxd2+ {[%clk 0:02:55]}
7. Nbxd2 {[%clk 0:02:45.6]} 7... Ne7 {[%clk 0:02:52.5]} 8. Bg2 {[%clk
0:02:45.5]} 8... O-O {[%clk 0:02:52.1]} 9. Rb1 {[%clk 0:02:44.2]} 9... c5 {[%clk
0:02:49.3]} 10. Nb3 {[%clk 0:02:40.5]} 10... Qc7 {[%clk 0:02:45]} 11. O-O {[%clk
0:02:39.7]} 11... Be6 {[%clk 0:02:39.2]} 12. e3 {[%clk 0:02:38]} 12... Nd7
{[%clk 0:02:38.2]} 13. Nfd2 {[%clk 0:02:36.1]} 13... Rad8 {[%clk 0:02:34.3]} 14.
Nc1 {[%clk 0:02:33.3]} 14... Nc6 {[%clk 0:02:30.1]} 15. Qb3 {[%clk 0:02:28.8]}
15... b6 {[%clk 0:02:19.6]} 16. Qb5 {[%clk 0:02:25]} 16... Rc8 {[%clk
0:02:01.2]} 17. a3 {[%clk 0:02:12.2]} 17... Rfd8 {[%clk 0:01:56.2]} 18. Ne4
{[%clk 0:01:57.2]} 18... h6 {[%clk 0:01:51.2]} 19. Rd1 {[%clk 0:01:52]} 19... f5
{[%clk 0:01:47.8]} 20. Nd2 {[%clk 0:01:50.6]} 20... Nf6 {[%clk 0:01:46.7]} 21.
Nf3 {[%clk 0:01:47.2]} 21... e4 {[%clk 0:01:43.6]} 22. Ne1 {[%clk 0:01:41.4]}
22... dxe3 {[%clk 0:01:38.4]} 23. fxe3 {[%clk 0:01:40.5]} 23... Ng4 {[%clk
0:01:36.9]} 24. Nc2 {[%clk 0:01:33.1]} 24... Nce5 {[%clk 0:01:32.5]} 25. Qb3
{[%clk 0:01:17.8]} 25... Bxc4 {[%clk 0:01:30.9]} 26. Qc3 {[%clk 0:01:08.1]}
26... exd3 {[%clk 0:01:22.5]} 27. Ne1 {[%clk 0:00:46.5]} 27... Nxe3 {[%clk
0:01:19.4]} 28. Rd2 {[%clk 0:00:46.3]} 28... Nxg2 {[%clk 0:01:12.9]} 29. Kxg2
{[%clk 0:00:45.7]} 29... Bd5+ {[%clk 0:01:09.4]} 30. Kg1 {[%clk 0:00:45.4]}
30... c4 {[%clk 0:01:06.8]} 31. Rb5 {[%clk 0:00:39.9]} 31... a6 {[%clk 0:01:00]}
32. Rb1 {[%clk 0:00:36.2]} 32... Qc5+ {[%clk 0:00:59.1]} 33. Kf1 {[%clk
0:00:33.1]} 33... Ng4 {[%clk 0:00:47.3]} 34. Ng2 {[%clk 0:00:21.3]} 34... Nxh2+
{[%clk 0:00:33.4]} 35. Ke1 {[%clk 0:00:17.4]} 35... Qg1# {[%clk 0:00:34.3]} 0-1

[Event "*** SCC Grand Prix: Titled Tuesday Blitz"]
[Site "Chess.com"]
[Date "2020.10.13"]
[Round "7"]
[White "anon569"]
[Black "KonstantinB_1983"]
[Result "1-0"]
[WhiteElo "2277"]
[BlackElo "2467"]
[TimeControl "180+1"]
[EndTime "11:16:19 PDT"]
[Termination "anon569 won by resignation"]

1. e4 {[%clk 0:03:00.9]} 1... d5 {[%clk 0:02:59.5]} 2. exd5 {[%clk 0:03:00.1]}
2... Qxd5 {[%clk 0:02:59.6]} 3. Nc3 {[%clk 0:02:59.5]} 3... Qd6 {[%clk
0:02:59.3]} 4. d4 {[%clk 0:02:55.3]} 4... Nf6 {[%clk 0:02:59.1]} 5. Nf3 {[%clk
0:02:54.1]} 5... a6 {[%clk 0:02:58.3]} 6. Bd3 {[%clk 0:02:37.8]} 6... g6 {[%clk
0:02:53.9]} 7. O-O {[%clk 0:02:34.9]} 7... Bg7 {[%clk 0:02:51.2]} 8. Ne4 {[%clk
0:02:30.8]} 8... Nxe4 {[%clk 0:02:47.4]} 9. Bxe4 {[%clk 0:02:30.1]} 9... O-O
{[%clk 0:02:47.1]} 10. Be3 {[%clk 0:02:26.3]} 10... c6 {[%clk 0:02:45.3]} 11.
Qd2 {[%clk 0:02:22.4]} 11... Bg4 {[%clk 0:02:39.9]} 12. h3 {[%clk 0:02:21.1]}
12... Bxf3 {[%clk 0:02:38.5]} 13. Bxf3 {[%clk 0:02:20.2]} 13... Nd7 {[%clk
0:02:36.1]} 14. c3 {[%clk 0:02:07.9]} 14... e5 {[%clk 0:02:33.7]} 15. dxe5
{[%clk 0:01:49.2]} 15... Qxd2 {[%clk 0:02:32]} 16. Bxd2 {[%clk 0:01:49]} 16...
Nxe5 {[%clk 0:02:32.2]} 17. Be2 {[%clk 0:01:49.6]} 17... Rfd8 {[%clk 0:02:29.6]}
18. Rad1 {[%clk 0:01:49.1]} 18... c5 {[%clk 0:02:06]} 19. Bg5 {[%clk 0:01:43.9]}
19... Re8 {[%clk 0:02:01.3]} 20. Rfe1 {[%clk 0:01:35.3]} 20... h6 {[%clk
0:01:57.3]} 21. Be3 {[%clk 0:01:32.3]} 21... Bf8 {[%clk 0:01:47.5]} 22. Rd5
{[%clk 0:01:26.4]} 22... Rac8 {[%clk 0:01:42.9]} 23. Red1 {[%clk 0:01:25.3]}
23... b6 {[%clk 0:01:37.4]} 24. Bxa6 {[%clk 0:01:22.2]} 24... Ra8 {[%clk
0:01:36.3]} 25. Bb5 {[%clk 0:01:21.4]} 25... Re7 {[%clk 0:01:28.7]} 26. a4
{[%clk 0:01:14.6]} 26... Kg7 {[%clk 0:01:16.1]} 27. Rd8 {[%clk 0:01:09.1]} 27...
Rxd8 {[%clk 0:01:06.8]} 28. Rxd8 {[%clk 0:01:09.3]} 28... g5 {[%clk 0:01:06.5]}
29. a5 {[%clk 0:01:05.8]} 29... Rb7 {[%clk 0:00:59.6]} 30. a6 {[%clk 0:01:04.5]}
30... Ra7 {[%clk 0:00:59]} 31. Rb8 {[%clk 0:01:03.8]} 31... Nd7 {[%clk
0:00:47.6]} 32. Bxd7 {[%clk 0:00:41.4]} 32... Rxd7 {[%clk 0:00:46.1]} 33. Rxb6
{[%clk 0:00:40.7]} 33... Rd1+ {[%clk 0:00:46]} 34. Kh2 {[%clk 0:00:40.4]} 34...
Ra1 {[%clk 0:00:46]} 35. b4 {[%clk 0:00:35.2]} 35... cxb4 {[%clk 0:00:42.4]} 36.
cxb4 {[%clk 0:00:35.2]} 36... Be7 {[%clk 0:00:40.7]} 37. Bd4+ {[%clk 0:00:34.5]}
37... Kh7 {[%clk 0:00:39.8]} 38. Bxa1 {[%clk 0:00:34]} 1-0